Cogmind - Beta 17 @@@ ROGUE MODE // 2026.07.28 @ 17:57:44 Player: LandRaider Result: Core melted Performance ------------- Evolutions (1) 500 Regions Visited (2) 400 Robots Destroyed (50) 250 Value Destroyed (930) 930 Prototype IDs (0) 0 Alien Tech Used (0) 0 Bonus (0) 0 TOTAL SCORE: 2080 Bonus ------- None Cogmind --------- Core Integrity 0/400 Matter 204/300 Energy 208/250 System Corruption 0% Temperature Critical (704) Movement Walking (330) Ox3 Location -9/Materials Parts ------- > --- POWER (2) -------- Ion Engine > --- PROPULSION (2) --- Aluminum Leg > --- UTILITY (3) ------ Large Storage Unit Propulsion Shielding Hardened Light Armor Plating > --- WEAPON (2) ------- Medium Laser Light Assault Rifle > --- INVENTORY (15) --- Light Ion Engine Light Ion Engine Aluminum Leg Aluminum Leg Wheel Compact Wheel Large Storage Unit Machine Analyzer Recalibrator Faulty Improved EM Shotgun Grenade Launcher Peak State ------------ > --- POWER ------------ Ion Engine Improved Ion Engine > --- PROPULSION ------- Light Treads Light Treads > --- UTILITY ---------- Large Storage Unit Seismic Detector Hardened Light Armor Plating > --- WEAPON ----------- Particle Cannon Improved Light Cannon > --- INVENTORY -------- Improved Treads Improved Treads Large Storage Unit Propulsion Shielding Medium Laser Particle Cannon Autogun Grenade Launcher [Rating: 14] Favorites ----------- Power Ion Engine Engine Ion Engine Propulsion Compact Wheel Treads Light Treads Leg Aluminum Leg Wheel Compact Wheel Utility Seismic Detector Device Seismic Detector Storage Small Storage Unit Protection Hardened Light Armor Plating Weapon Light Assault Rifle Energy Gun Medium Laser Energy Cannon Particle Cannon Ballistic Gun Light Assault Rifle Ballistic Cannon Improved Light Cannon Special Weapon Mining Laser Build | -11 -10 -9 ------- Run | Yrd Mat Mat Slots Evolved 2 | . . 2 Power 1 | . . 1 Propulsion . | . . . Utility 1 | . . 1 Weapon . | . . . Parts Attached 37 | 9 8 20 Power 9 | 2 1 6 Engine 9 | 2 1 6 Core . | . . . Reactor . | . . . Propulsion 9 | 2 3 4 Treads 4 | . 2 2 Leg 2 | . . 2 Wheel 3 | 2 1 . Hover . | . . . Flight . | . . . Utility 7 | 2 . 5 Device 1 | 1 . . Storage 3 | 1 . 2 Processor . | . . . Hackware . | . . . Protection 3 | . . 3 Artifact . | . . . Weapon 12 | 3 4 5 Energy Gun 2 | 1 1 . Energy Cannon 3 | . . 3 Ballistic Gun 5 | 1 3 1 Ballistic Cannon 1 | . . 1 Launcher . | . . . Special Weapon 1 | 1 . . Impact Weapon . | . . . Slashing Weapon . | . . . Piercing Weapon . | . . . Special Melee Weapon . | . . . Unidentified Prototypes . | . . . Parts Lost 15 | . 3 12 Power 4 | . . 4 Propulsion 5 | . 1 4 Utility 2 | . . 2 Weapon 4 | . 2 2 Highest Loss Streak 6 | . 2 6 To Critical Strikes . | . . . Average Backups 7 | 6 7 8 Power . | . 1 . Propulsion 3 | 3 2 2 Utility . | . 1 2 Weapon 2 | 1 2 2 Tool/Special . | . . . Unused Backups 12 | . 2 10 Power 1 | . . 1 Propulsion 7 | . 2 5 Utility 2 | . . 2 Weapon 2 | . . 2 Tool/Special . | . . . Average Slot Usage (%) 92 | . 99 82 Engine 15 | . 14 18 Treads 15 | . 19 11 Leg 3 | . . 8 Wheel 5 | . 8 . Device 10 | . 14 4 Storage 12 | . 14 11 Protection 3 | . . 8 Energy Gun 9 | . 13 3 Energy Cannon 4 | . . 11 Ballistic Gun 8 | . 14 . Ballistic Cannon 1 | . . 4 Peak Build Rating 14 | 7 9 14 Average Rating 8 | 6 8 10 On Entrance 5 | . 7 8 Avg Prop Armor Cover (%) . | . . . Naked Turns . | . . . Heaviest Build 46 | 14 16 46 Greatest Support 46 | 26 40 46 Greatest Overweight (x) 15 | . . 15 Average Overweight (x) . | . . . Largest Inventory Capacity 15 | 8 8 15 Average Capacity 9 | 7 8 14 Most Carried 15 | 7 8 15 Average Carried 7 | 6 7 8 Final Capacity 15 | 8 8 15 Final Carried 11 | 7 6 11 Class Distribution -------------------- 93% | Mutant 6% | Scavenger-Mutant Dominant Class ---------------- Mutant | -10/Materials Mutant | -9/Materials Resources | -11 -10 -9 ----------- Run | Yrd Mat Mat Matter Collected 978 | 303 304 371 Remotely . | . . . Salvage Created 1560 | 122 847 591 Parts 75 | 4 41 30 Haulers Intercepted 2 | . 2 . Recyclers Shooed 2 | 1 1 . Parts Field Recycled . | . . . Retrieved Matter . | . . . Parts Self-Destructed . | . . . Prevented . | . . . Parts Restored . | . . . Kills | -11 -10 -9 ------- Run | Yrd Mat Mat Combat Hostiles Destroyed 33 | . 17 16 Guns 18 | . 17 1 Cannons 15 | . . 15 Classes Destroyed 9 | 2 5 2 Worker 4 | . 4 . Tunneler 2 | 2 . . Hauler 2 | . 2 . Recycler 3 | 1 1 1 Mechanic 1 | . . 1 Watcher 5 | . 2 3 Swarmer 14 | . 6 8 Grunt 18 | . 11 7 Sentry 1 | . . 1 Best Kill Streak 8 | 2 7 8 Combat Bots Only 8 | . 4 8 Max Kills in Single Turn 2 | 1 1 2 Gunslinging . | . . . Exploded . | . . . Melee . | . . . Uniques/NPCs Destroyed . | . . . Combat | -11 -10 -9 -------- Run | Yrd Mat Mat Hostile Shots Fired 309 | . 117 192 Missed 65 | . 30 35 Hits 244 | . 87 157 Projectile 244 | . 87 157 Critical Strikes 4 | . . 4 Actively Blocked 2 | . . 2 Damage Taken 2600 | . 879 1721 Core 673 | . 226 447 Absorbed by Shields . | . . . Redirected to Shielding 26 | . . 26 Core Remaining (%) 54 | 100 9 . Volleys Fired 192 | 37 91 64 Largest 2 | 2 2 2 Hottest 136 | 100 73 136 Shots Fired 327 | 50 177 100 Gun 218 | 26 177 15 Cannon 85 | . . 85 Launcher . | . . . Special 24 | 24 . . Kinetic 134 | 13 88 33 Thermal 193 | 37 89 67 Explosive . | . . . Electromagnetic . | . . . Robot Hit Streak 13 | 5 13 11 Robot Miss Streak 13 | 2 5 13 Penetration Max . | . . . Secondary Targets 3 | . 3 . Max Gunslinging Chain 1 | . 1 . Shots Hit Robots 162 | 19 97 46 Core Hits 67 | 5 39 23 Critical Kills . | . . . Critical Parts Destroyed . | . . . Critical Strikes 6 | 1 4 1 Burn 5 | 1 4 . Blast 1 | . . 1 Melee Attacks . | . . . Impact . | . . . Slashing . | . . . Piercing . | . . . Sneak Attacks . | . . . Combat Hostiles . | . . . Follow-up Attacks . | . . . Damage Inflicted 2440 | 186 1161 1093 Guns 1437 | 186 1161 90 Cannons 1003 | . . 1003 Explosions . | . . . Melee . | . . . Ramming . | . . . Kinetic 947 | 89 536 322 Thermal 1493 | 97 625 771 Explosive . | . . . Electromagnetic . | . . . Impact . | . . . Slashing . | . . . Piercing . | . . . Highest Corruption 1 | . 1 . Average Corruption 1 | . 1 . Corruption Purged . | . . . Corruption Blocked . | . . . Effects 2 | . 2 . Message Errors 2 | . 2 . Overload Shots . | . . . Overflow Damage 8 | . . 8 Projectiles 8 | . . 8 Explosions . | . . . Melee . | . . . Knockbacks 3 | . . 3 Impact . | . . . Kinetic 2 | . . 2 Secondary 1 | . . 1 Self-Inflicted Damage . | . . . Shots . | . . . Rammed . | . . . Targets Rammed . | . . . Kicked . | . . . Crushed . | . . . Highest Temperature 704 | 160 312 704 Average Temperature 166 | 89 99 287 Received Heat Transfer 765 | . 336 429 Effects 69 | . 5 64 Shutdowns 16 | . . 16 Energy Bleed 7 | . . 7 Interference 12 | . 4 8 Matter Decay 4 | . . 4 Short Circuit 3 | . . 3 Damage (minor) 5 | . 1 4 Damage (major) 18 | . . 18 Damage (core) 4 | . . 4 Siege Activations . | . . . Martial Activations . | . . . Shielding Activations . | . . . Robots Disrupted . | . . . Combat Hostiles . | . . . Robots Corrupted . | . . . Combat Hostiles . | . . . Parts Fried . | . . . Impact Corruptions . | . . . Robots Melted 1 | . 1 . Combat Hostiles . | . . . Parts Melted 9 | 1 5 3 Heat Transferred 3959 | 370 2146 1443 Parts Sabotaged . | . . . Parts Stolen . | . . . Parts Stripped . | . . . Power Chain Reactions . | . . . Alert | -11 -10 -9 ------- Run | Yrd Mat Mat Maximum Alert Level . | . . . Low Security (%) 100 | 100 100 100 Level 1 . | . . . Level 2 . | . . . Level 3 . | . . . Level 4 . | . . . Level 5 . | . . . High Security . | . . . Max Security . | . . . Peak Influence 191 | 10 191 138 Initial 42 | . . 42 Average 39 | . 96 59 Influence Increases 924 | 15 507 402 Destroy 0b10 Robot/C 660 | . 340 320 Destroy 0b10 Robot/NC 85 | 15 45 25 Destroy Leader 114 | . 68 46 Successful Hack 15 | . 7 8 Destroy Structure 5 | . 2 3 Lose Combat Pursuer 45 | . 45 . Influence Decreases 817 | 15 404 398 Entered New Map 61 | . . 61 Time Decay 634 | 15 374 245 Lost Part 122 | . 30 92 Squads Dispatched 6 | . 4 2 Investigation 4 | . 3 1 Extermination . | . . . Reinforcement 2 | . 1 1 Assault . | . . . Garrison . | . . . Intercept . | . . . Searches Triggered . | . . . Construction Impeded . | . . . Haulers Reinforced . | . . . Active Scanning Responses . | . . . Cargo Convoy Interrupts . | . . . Stealth | -11 -10 -9 --------- Run | Yrd Mat Mat Distress Signals 2 | . 1 1 Communications Jammed . | . . . Distress Signals . | . . . Times Spotted 49 | . 25 24 Peak Tracking Total 8 | . 6 8 Tactical Retreats 2 | . 2 . Traps | -11 -10 -9 ------- Run | Yrd Mat Mat Traps Triggered 2 | . 2 . Indirectly . | . . . Trap Hack Attempts . | . . . Triggered . | . . . Disarmed . | . . . Reprogrammed . | . . . Reused . | . . . Traps Extracted . | . . . Installed . | . . . Triggered . | . . . Machines | -11 -10 -9 ---------- Run | Yrd Mat Mat Machines Disabled . | . . . Max in Single Turn . | . . . Machines Repaired . | . . . Machines Dismantled . | . . . Machines Sabotaged . | . . . Overloaded Fab Kills . | . . . Hacking | -11 -10 -9 --------- Run | Yrd Mat Mat Machines Accessed 8 | . 5 3 Terminals 5 | . 4 1 Fabricators . | . . . Repair Stations . | . . . Recycling Units 2 | . 1 1 Scanalyzers 1 | . . 1 Garrison Access . | . . . Total Hacks 29 | . 18 11 Successful 13 | . 7 6 Failed 16 | . 11 5 Catastrophic 4 | . 3 1 Database Lockouts . | . . . Manual . | . . . Terminals 23 | . 16 7 Fabricators . | . . . Repair Stations . | . . . Recycling Units 3 | . 2 1 Scanalyzers 3 | . . 3 Garrison Access . | . . . Terminal Hacks 9 | . 6 3 Record 5 | . 2 3 Branch Access Points 1 | . 1 . Emergency Access Points 1 | . 1 . Alert Level 2 | . 2 . Fabricator Hacks . | . . . Repair Station Hacks . | . . . Recycling Unit Hacks 2 | . 1 1 Report Inventory 2 | . 1 1 Scanalyzer 2 | . . 2 Insert Component 1 | . . 1 Analyze 1 | . . 1 Garrison Access Hacks . | . . . Unauthorized Hacks . | . . . Terminals . | . . . Fabricators . | . . . Repair Stations . | . . . Recycling Units . | . . . Scanalyzers . | . . . Garrison Access . | . . . Data Cores Recovered . | . . . Used . | . . . Hacking Detections 7 | . 5 2 Full Trace Events 6 | . 4 2 Feedback Events 1 | . 1 . Corruption 1 | . 1 . Feedback Blocked . | . . . Robot Schematics Acquired . | . . . Robots Built . | . . . Authchips . | . . . Time . | . . . Total Robot Build Rating . | . . . Part Schematics Acquired 1 | . . 1 Parts Built . | . . . Authchips . | . . . Time . | . . . Total Part Build Rating . | . . . Part Studies Acquired . | . . . Parts Repaired . | . . . Time . | . . . Parts Recycled . | . . . Recycled Matter . | . . . Retrieved Matter . | . . . Retrieved Components . | . . . Parts Scanalyzed 1 | . . 1 Part Schematics Acquired 1 | . . 1 Parts Damaged . | . . . Bothacking | -11 -10 -9 ------------ Run | Yrd Mat Mat Used RIF Installer . | . . . Robots Hacked . | . . . Non-combat . | . . . Combat . | . . . Robot Hacks Applied . | . . . Relay Couplers Released . | . . . Fabnet Peak Effective % . | . . . Robots Rewired . | . . . Allies Hacked . | . . . Hacks Repelled . | . . . Allies | -11 -10 -9 -------- Run | Yrd Mat Mat Total Allies . | . . . Largest Group . | . . . Highest-Rated Group . | . . . Highest-Rated Ally . | . . . Total Orders . | . . . Ally Attacks . | . . . Total Damage . | . . . Kills . | . . . Allies Corrupted . | . . . Allies Melted . | . . . Intel | -11 -10 -9 ------- Run | Yrd Mat Mat Active Infowar (turns) 2823 | 1618 947 258 Seismic 2823 | 1618 947 258 Robot Analysis Total . | . . . Derelict Logs Recovered . | . . . Drone Launches . | . . . Drone Recoveries . | . . . Exploration | -11 -10 -9 ------------- Run | Yrd Mat Mat Turns Passed 3304 | 1720 963 621 Spaces Moved 1366 | 699 482 185 Core 5 | 4 . 1 Treads 434 | . 333 101 Legs 83 | . . 83 Wheels 844 | 695 149 . Hover . | . . . Flight . | . . . Fastest Speed 50 | 50 90 160 Average Speed 123 | 89 139 209 Slowest Speed 800 | 90 160 800 Overloaded Moves . | . . . Propulsion Burnouts . | . . . Robots Hopped . | . . . Potential Cave-ins 3 | 3 . . Cave-ins Triggered . | . . . Exploration Rate (%) 45 | 45 72 19 Regions Visited 2 Branch Regions . Pre-discovered Areas . | . . . Known Exits Taken . | . . . Unknown Exits Taken 2 | 1 1 . Scrap Searched . | . . . Spaces Dug 8 | 8 . . Terrain Destroyed 12 | 10 . 2 Melee . | . . . Projectile 12 | 10 . 2 AOE . | . . . Terrain Rammed . | . . . Walls Destroyed . | . . . Machines Disabled . | . . . Actions | -11 -10 -9 --------- Run | Yrd Mat Mat Total 2632 | 1694 618 320 Wait 964 | 936 15 13 Move 1364 | 698 481 185 Hop . | . . . Pick Up 48 | 14 9 25 Fast Attach 2 | . 2 . Attach 27 | 7 5 15 Detach . | . . . Swap 16 | 2 4 10 Drop 19 | . 11 8 Fire 192 | 37 91 64 Melee . | . . . Ram . | . . . Kick . | . . . Crush . | . . . Escape Stasis . | . . . Rewire . | . . . Trap . | . . . Miscellaneous . | . . . Route ------- -11/Scrapyard -10/Materials (discovered 4 exits: *Mat x3 / *Min) -9/Materials History --------- Turn | Location | Event 23 | -11/Scrapyard | Discovered new exit (range 14) 1721 | -11/Scrapyard | Entered Materials 1745 | -10/Materials | Build established: Mutant 1792 | -10/Materials | Discovered new exit (range 8) 1803 | -10/Materials | Discovered new exit (range 14) 1975 | -10/Materials | Discovered new exit (range 12) 2138 | -10/Materials | Core integrity fell below 50% 2210 | -10/Materials | Identified exit to Mines 2391 | -10/Materials | Discovered new exit (range 13) 2650 | -10/Materials | Core integrity fell below 20% 2684 | -10/Materials | Entered another Materials area 2684 | -9/Materials | Evolved 2 slots: Power x1, Utility x1 3027 | -9/Materials | Core integrity fell below 50% 3070 | -9/Materials | Lost 6 parts (3p1n1u1w) 3080 | -9/Materials | Destroyed 8 combat bots 3293 | -9/Materials | Core integrity fell below 20% 3306 | -9/Materials | Core melted Last Messages --------------- 03296_ Overheating: Short circuit. 03296_ Particle Cannon destroyed. 03298_ K-01 Serf collects debris. 03298_ Dropped Broken Particle Cannon. 03298_ U-05 Engineer builds a Door. 03299_ Overheating: Matter decay (-48). 03300_ Aluminum Leg destroyed. 03301_ Power failure, Ion Engine shutdown. 03301_ S-10 Pest destroyed. 03301_ K-01 Serf collects debris. 03302_ Overheating: Matter decay (-22). 03302_ Ion Engine destroyed. 03303_ Overheating: System interference. 03303_ Lgt. Assault Rifle temporarily disabled. 03304_ G-34 Mercenary heat spikes uncontrollably. 03304_ G-34 Mercenary overheating. 03305_ Overheating: Energy bleed (-37). 03305_ G-34 Mercenary overheating. 03306_ Overheating: Core damaged (-64). Map ----- +----------------------------------------------------+ | ?????????????????????????????????????????????????? | | ?????????????????????????????????????????????????? | | ?????????????????????????????????????????????????? | | ?????????????????????????????????????????????????? | | ?????????????????????????????????????????????????? | | ?????????????????????????????????????????????????? | | ?????????????????????????????????????????????????? | | ?????????????????????????????????????????????????? | | ?????????????????????????????????????????????????? | | ???????????????????????? ??? ??????????????????? | | ?????????????????????### +?????????????????? | | ????????????????????? #?????????????????? | | ??????????????? ??? #?????????????????? | | ??????????????? ??????????????????? | | ?????????????? """ """ ??????????????????? | | ?????????????? """ """ #??????????????????? | | ????????????? """ """ #??????????????????? | | ????????????? #??????????????????? | | ????????????? #??????????????????# | | ???????????? #?????????????????# | | ????????????? #????????????????? | | ????????????????? g ?????????????????? | | ????????????????????? kg############????????? | | ????????????????????????#g% # = #????????? | | ????????????????????????#%[ # #?????????# | | ????????????????????????#@* + """ #??######## | | ????????????????????????# #"S """ # # | | ????????????????????????# #""" """ + "T" + | | ????????????????????????# # "" # """ # | | ????????????????????????# # #?? # | | ????????????????????????# ############????###### | | ????????????????????????# %##################### | | ????????????????????????# % %% = =% | | ????????????????????????# % ] =% | | ????????????????#########%%= = = | | ???????????????+ =%#################+### | | ????????????????##########+########??????# ## | | ???????????????????# %= ##??????# [ #? | | ???????????????????# """"="""" ##??????# [[ #? | | ???????????????????# """" """" #???????# ] #? | | ???????????????????# """" """" #???????# =#? | | ???????????????????# #???????# #? | | ???????????????????# #???????########? | | ???????????????????##############????????????????? | | | | | | | | | | | | | +----------------------------------------------------+ Best States ------------- Heat Dissipation 28 Energy Generation 17 Energy Capacity 415 Matter Stores 300 Matter Capacity 300 Sight Range 16 Terrain Scan Density 10 Armor Coverage 150 Propulsion Shielding 33 Evasion (%) 42 Recoil Reduction 2 Item Schematics ----------------- Lrg. Storage Unit | -9/Materials | Scanalyzed Robot Schematics ------------------ None Fabricated ------------ Nothing Repaired ---------- Nothing Studied --------- None Alien Tech Used ----------------- None Achievements -------------- That Tickles Challenges ------------ None Game ------ Seed AntimatterWeldingDrillbomb Manual? 0 Play Time 00:31:47 Cumulative 12.9 hours Start 2026.07.28 @ 16:56:05 End 2026.07.28 @ 17:57:44 Sessions 1 Manual Loads 0 Difficulty Rogue Special Mode None Game No. 9 Rogue 7 Adventurer 2 Explorer 0 Win Type - Total 0 Types 0/0/0/0/0/0/0/0/0/0 Lore% 4 Gallery% 10 Achievement% 11 Wizard Run 0 Options --------- Layout 1 ASCII 0 Keyboard 0 Movement Mouse Keybinds 0 Fullscreen 2 Font 32/SmallcapsGlow Map View 50x35 Zoom Use 0% Tactical HUD 1 Map Filters NONE Filters NONE Steam 1 RUN: d70796c4-dc0c-4179-8886-ffc834f7d8bd